bitfinex/quotes_SOLUSD_20250112
["timestamp","ask_amount","ask_price","bid_price","bid_amount"]
[1736655119459,1.6268,187.18,187.08,7.0073622]
[1736655121645,1.6268,187.18,187.08,23.776884]
[1736655123336,1.6268,187.18,187.08,8.83396769]
[1736655124443,1.6268,187.18,187.1,23.776884]
[1736655125123,1.6268,187.18,187.1,8.83396769]
[1736655125340,79.04413058,187.21,187.12,23.776884]
[1736655126312,79.04413058,187.21,187.12,32.61085169]
[1736655126512,1.6655,187.22,187.14,8.83396769]
[1736655126723,1.6655,187.22,187.12,7.80876972]
[1736655126921,1.6655,187.22,187.13,8.83396769]
[1736655129058,1.6655,187.22,187.14,23.776884]
[1736655130975,1.6655,187.22,187.12,7.0073622]
[1736655134856,1.6655,187.22,187.12,15.84132989]
[1736655138086,1.6655,187.22,187.1,8.83396769]
[1736655138087,80.70963058,187.22,187.1,8.83396769]
[1736655138388,80.70963058,187.22,187.1,23.776884]
[1736655141459,80.70963058,187.22,187.11,20.0]
[1736655145283,80.70963058,187.22,187.1,23.776884]
[1736655147697,80.70963058,187.22,187.1,8.83396769]
[1736655150994,7.7334,187.18,187.08,15.84132989]
[1736655151770,7.7334,187.18,187.08,39.61821389]
[1736655153102,7.7334,187.18,187.09,8.83396769]
[1736655155172,7.7334,187.18,187.1,8.83396769]
[1736655160208,7.7334,187.18,187.11,8.83396769]
[1736655166204,7.7334,187.18,187.12,8.83396769]
[1736655169227,7.7334,187.18,187.09,23.776884]
[1736655169403,7.7334,187.18,187.11,8.83396769]
[1736655178831,7.7334,187.18,187.1,8.83396769]
[1736655181528,7.7334,187.18,187.11,8.83396769]
[1736655188128,7.7334,187.18,187.12,32.61085169]
[1736655188432,1.5372,187.22,187.16,8.83396769]
[1736655189547,1.5372,187.22,187.15,8.83396769]
[1736655190331,1.5372,187.22,187.14,39.61821389]
[1736655191129,1.5372,187.22,187.14,7.0073622]
[1736655191842,80.58133058,187.22,187.11,8.83396769]
[1736655192021,80.58133058,187.22,187.1,15.84132989]
[1736655192423,88.92240661,187.22,187.1,7.0073622]
[1736655194343,8.34107603,187.19,187.1,7.0073622]
[1736655194516,7.6288,187.18,187.1,7.0073622]
[1736655195530,7.6288,187.18,187.1,15.84132989]
[1736655197137,15.96987603,187.18,187.1,15.84132989]
[1736655200542,7.6288,187.18,187.1,15.84132989]
[1736655201744,15.96987603,187.18,187.1,15.84132989]
[1736655202436,7.6288,187.18,187.1,15.84132989]
[1736655204532,15.96987603,187.18,187.1,15.84132989]
[1736655205239,7.6288,187.18,187.1,15.84132989]
[1736655216255,7.6288,187.18,187.11,8.83396769]
[1736655216754,7.6288,187.18,187.12,8.83396769]
[1736655217063,1.5372,187.18,187.12,8.83396769]
[1736655217437,8.34107603,187.19,187.14,8.83396769]
[1736655217850,8.34107603,187.19,187.13,8.83396769]
[1736655218039,8.34107603,187.19,187.12,8.83396769]
[1736655218239,8.34107603,187.2,187.12,8.83396769]
[1736655220163,8.34107603,187.2,187.11,150.74132989]
[1736655220757,1.5795,187.19,187.11,141.9073622]
[1736655221662,6.3851,187.18,187.11,141.9073622]
[1736655222359,14.72617603,187.18,187.11,141.9073622]
[1736655223366,14.72617603,187.18,187.09,15.84132989]
[1736655224962,14.72617603,187.18,187.09,7.0073622]
[1736655228943,14.72617603,187.18,187.09,15.84132989]
[1736655229469,14.72617603,187.18,187.1,8.83396769]
[1736655230969,6.3851,187.18,187.1,8.83396769]
[1736655232048,6.3851,187.18,187.11,8.83396769]
[1736655235169,6.3851,187.18,187.11,15.84132989]
[1736655235586,6.3851,187.18,187.12,8.83396769]
[1736655243377,6.3851,187.18,187.11,15.84132989]
[1736655243873,6.3851,187.18,187.11,7.0073622]
[1736655244978,6.3851,187.18,187.11,15.84132989]
[1736655246080,9.92057603,187.19,187.11,15.84132989]
[1736655246982,8.34107603,187.19,187.14,15.84132989]
[1736655247278,8.34107603,187.19,187.15,8.83396769]
[1736655247778,8.34107603,187.2,187.15,8.83396769]
[1736655249483,8.34107603,187.2,187.14,15.84132989]
[1736655250482,8.34107603,187.2,187.14,7.0073622]
[1736655273510,8.34107603,187.2,187.12,7.0073622]
[1736655274314,8.34107603,187.19,187.12,7.0073622]
[1736655274887,8.34107603,187.18,187.12,7.0073622]
[1736655276201,8.34107603,187.19,187.12,7.0073622]
[1736655276377,1.6513,187.18,187.12,7.0073622]
[1736655276804,9.99237603,187.18,187.12,7.0073622]
[1736655277196,9.99237603,187.18,187.08,7.0073622]
[1736655277707,9.99237603,187.18,187.08,15.84132989]
[1736655278281,9.99237603,187.18,187.08,7.0073622]
[1736655278483,8.34107603,187.17,187.08,7.0073622]
[1736655280000,8.34107603,187.17,187.08,15.84132989]
[1736655283202,8.34107603,187.17,187.08,150.74132989]
[1736655283688,9.99237603,187.18,187.08,150.74132989]
[1736655284904,9.99237603,187.18,187.09,8.83396769]
[1736655288112,9.99237603,187.18,187.1,8.83396769]
[1736655288909,9.99237603,187.18,187.11,8.83396769]
[1736655289090,9.99237603,187.18,187.12,15.84132989]
[1736655289496,1.6513,187.18,187.12,15.84132989]
[1736655291818,1.6513,187.18,187.12,7.0073622]
[1736655292197,1.6513,187.18,187.12,15.84132989]
[1736655293515,1.6513,187.18,187.12,7.0073622]
[1736655306635,1.6513,187.18,187.13,32.61085169]
[1736655306817,8.34107603,187.2,187.13,33.41225542]
[1736655307239,14.59747603,187.21,187.13,33.41225542]
[1736655307641,14.59747603,187.21,187.14,8.83396769]
[1736655307951,8.34107603,187.21,187.15,8.83396769]
[1736655308448,8.34107603,187.21,187.16,15.84132989]
[1736655309468,8.34107603,187.22,187.16,15.84132989]
[1736655310859,8.34107603,187.22,187.16,7.0073622]
[1736655311545,8.34107603,187.21,187.16,7.0073622]
[1736655312448,7.7913,187.2,187.11,7.0073622]
[1736655313952,8.34107603,187.19,187.11,7.0073622]
[1736655314453,8.34107603,187.18,187.11,7.0073622]
[1736655315062,8.34107603,187.17,187.11,7.0073622]
[1736655317514,1.6408,187.16,187.07,7.0073622]
[1736655318820,6.2471,187.15,187.07,7.0073622]
[1736655319040,8.34107603,187.13,187.07,7.0073622]
[1736655319346,6.2471,187.15,187.07,7.0073622]
[1736655324547,8.4084587,187.15,187.07,7.0073622]
[1736655325255,8.38746359,187.12,187.07,7.0073622]
[1736655325952,8.38746359,187.14,187.07,7.0073622]
[1736655327171,8.38746359,187.14,187.07,15.84132989]
[1736655327334,8.38746359,187.14,187.08,8.83396769]
[1736655327530,8.38746359,187.14,187.09,8.83396769]
[1736655327930,6.2471,187.15,187.09,8.83396769]
[1736655330467,6.2471,187.15,187.08,8.83396769]
[1736655331560,6.2471,187.15,187.07,15.84132989]
[1736655333361,6.2471,187.15,187.08,8.83396769]
[1736655336963,6.2471,187.15,187.08,15.84132989]
[1736655348670,21.6408,187.16,187.09,8.83396769]
[1736655348858,21.6408,187.16,187.09,15.84132989]
[1736655349746,1.6408,187.16,187.11,15.84132989]
[1736655352679,1.6408,187.16,187.11,7.0073622]
[1736655360876,1.6408,187.16,187.09,141.9073622]
[1736655365579,10.01587588,187.16,187.09,141.9073622]
[1736655366367,10.01587588,187.16,187.09,150.74132989]
[1736655366977,10.01587588,187.16,187.09,15.84132989]
[1736655367583,1.6408,187.16,187.09,15.84132989]
[1736655374691,1.6408,187.16,187.09,7.0073622]
[1736655377188,10.01587588,187.16,187.09,7.0073622]
[1736655379082,8.37507588,187.15,187.09,7.0073622]
[1736655380081,8.37507588,187.14,187.09,7.0073622]
[1736655382367,8.37507588,187.13,187.09,7.0073622]
[1736655385698,8.37507588,187.14,187.09,7.0073622]
[1736655385874,8.37507588,187.14,187.09,15.84132989]
[1736655386084,8.37507588,187.14,187.1,8.83396769]
[1736655386488,8.37507588,187.15,187.1,8.83396769]
[1736655387493,8.37507588,187.15,187.09,15.84132989]
[1736655388898,8.37507588,187.15,187.12,8.83396769]
[1736655390078,8.37507588,187.17,187.12,8.83396769]
[1736655390896,8.37507588,187.18,187.12,8.83396769]
[1736655391676,8.37507588,187.18,187.11,8.83396769]
[1736655394299,8.37507588,187.18,187.12,8.83396769]
[1736655395298,8.37507588,187.19,187.12,8.83396769]
[1736655396715,8.37507588,187.19,187.1,23.776884]
[1736655396910,8.37507588,187.19,187.12,8.83396769]
[1736655397818,8.37507588,187.19,187.09,15.84132989]
[1736655397974,8.37507588,187.19,187.09,7.0073622]
[1736655398304,6.2569,187.18,187.09,7.0073622]
[1736655398689,8.37507588,187.17,187.09,7.0073622]
[1736655399588,8.37507588,187.16,187.09,7.0073622]
[1736655399791,1.548,187.15,187.06,143.73396769]
[1736655403493,9.92307588,187.15,187.06,143.73396769]
[1736655404690,9.92307588,187.15,187.07,8.83396769]
[1736655406109,1.548,187.15,187.07,8.83396769]
[1736655406411,1.548,187.15,187.06,8.83396769]
[1736655406605,9.92307588,187.15,187.06,8.83396769]
[1736655412739,9.92307588,187.15,187.07,8.83396769]
[1736655414830,9.92307588,187.15,187.07,91.43396769]
[1736655419334,1.548,187.15,187.07,91.43396769]
[1736655420026,9.92307588,187.15,187.07,91.43396769]
[1736655421648,1.548,187.15,187.07,91.43396769]
[1736655422509,9.92307588,187.15,187.07,91.43396769]
[1736655422746,9.92307588,187.15,187.08,8.83396769]
[1736655423041,9.92307588,187.15,187.09,8.83396769]
[1736655423338,1.548,187.15,187.09,8.83396769]
[1736655426844,1.548,187.15,187.09,91.43396769]
[1736655427217,8.37507588,187.17,187.12,8.83396769]
[1736655427445,8.37507588,187.17,187.13,8.83396769]
[1736655428534,8.37507588,187.19,187.13,91.43396769]
[1736655430038,8.37507588,187.19,187.13,82.6]
[1736655434621,6.1623,187.18,187.08,82.6]
[1736655435345,8.37507588,187.17,187.08,82.6]
[1736655438764,8.37507588,187.17,187.08,217.5]
[1736655440247,8.37507588,187.17,187.08,226.33396769]
[1736655440954,14.53737588,187.18,187.08,226.33396769]
[1736655443056,14.53737588,187.18,187.09,8.83396769]
[1736655444464,14.53737588,187.18,187.1,217.5]
[1736655444643,8.37507588,187.18,187.13,8.83396769]
[1736655445552,8.37507588,187.19,187.13,8.83396769]
[1736655446573,8.37507588,187.19,187.14,8.83396769]
[1736655446755,8.37507588,187.19,187.15,8.83396769]
[1736655447976,1.5407,187.2,187.15,8.83396769]
[1736655448348,8.37507588,187.21,187.15,8.83396769]
[1736655449571,8.37507588,187.21,187.14,8.83396769]
[1736655450657,8.37507588,187.21,187.14,226.33396769]
[1736655450970,8.37507588,187.22,187.14,226.33396769]
[1736655451374,8.37507588,187.22,187.14,217.5]
[1736655455572,1.5948,187.21,187.14,217.5]
[1736655456676,8.37507588,187.2,187.14,82.6]
[1736655472676,8.37507588,187.19,187.14,82.6]
[1736655473483,8.37507588,187.19,187.14,91.43396769]
[1736655474698,8.37507588,187.21,187.14,226.33396769]
[1736655477691,8.37507588,187.21,187.14,217.5]
[1736655486910,8.37507588,187.21,187.15,9.63527678]
[1736655487404,8.37507588,187.21,187.15,8.83396769]
[1736655487993,8.37507588,187.22,187.15,8.83396769]
[1736655489010,8.37507588,187.22,187.14,226.33396769]
[1736655489715,8.37507588,187.22,187.15,8.83396769]
[1736655489886,8.37507588,187.22,187.16,8.83396769]
[1736655490213,8.37507588,187.22,187.16,226.33396769]
[1736655491301,8.37507588,187.21,187.16,226.33396769]
[1736655492406,8.37507588,187.21,187.16,217.5]
[1736655492808,8.37507588,187.21,187.16,82.6]
[1736655492993,14.72867588,187.21,187.16,82.6]
[1736655493193,1.5544,187.2,187.16,82.6]
[1736655494010,9.92947588,187.2,187.16,82.6]
[1736655494314,9.92947588,187.2,187.1,217.5]
[1736655495316,9.92947588,187.2,187.1,82.6]
[1736655495614,8.37507588,187.19,187.1,82.6]
[1736655496521,8.37507588,187.18,187.1,82.6]
[1736655504014,8.37507588,187.19,187.1,82.6]
[1736655504504,8.37507588,187.18,187.1,82.6]
[1736655504706,8.37507588,187.18,187.1,217.5]
[1736655505020,8.37507588,187.18,187.1,226.33396769]
[1736655506415,8.37507588,187.19,187.1,226.33396769]
[1736655506613,8.37507588,187.19,187.11,8.83396769]
[1736655506998,8.37507588,187.19,187.12,8.83396769]
[1736655507199,8.37507588,187.19,187.11,8.83396769]
[1736655508004,8.37507588,187.19,187.1,217.5]
[1736655508005,8.37507588,187.19,187.1,226.33396769]
[1736655508206,8.37507588,187.19,187.1,217.5]
[1736655508820,8.37507588,187.18,187.1,217.5]
[1736655510529,8.37507588,187.19,187.1,217.5]
[1736655511519,8.37507588,187.18,187.1,217.5]
[1736655512320,8.37507588,187.19,187.1,217.5]
[1736655514022,8.37507588,187.18,187.1,217.5]
[1736655514998,8.37507588,187.18,187.1,226.33396769]
[1736655515318,8.37507588,187.18,187.1,217.5]
[1736655516521,8.37507588,187.18,187.1,82.6]
[1736655522230,8.37507588,187.18,187.1,91.43396769]
[1736655522525,8.37507588,187.18,187.1,226.33396769]
[1736655522828,8.37507588,187.19,187.1,226.33396769]
[1736655526237,8.37507588,187.18,187.1,226.33396769]
[1736655527708,8.37507588,187.18,187.11,8.83396769]
[1736655528531,8.37507588,187.18,187.11,226.33396769]
[1736655528925,8.37507588,187.19,187.11,226.33396769]
[1736655537436,8.37507588,187.19,187.13,8.83396769]
[1736655538134,8.37507588,187.19,187.14,226.33396769]
[1736655538333,1.5544,187.2,187.14,226.33396769]
[1736655538334,8.37507588,187.2,187.16,8.83396769]
[1736655538534,8.37507588,187.2,187.17,8.83396769]
[1736655539344,8.37507588,187.21,187.17,8.83396769]
[1736655541540,8.37507588,187.21,187.18,226.33396769]
[1736655541739,8.37507588,187.21,187.18,217.5]
[1736655544931,8.37507588,187.2,187.18,217.5]
[1736655545841,1.576,187.19,187.11,217.5]
[1736655547247,8.37507588,187.2,187.14,237.5]
[1736655547447,8.37507588,187.17,187.15,226.33396769]
[1736655548125,8.37507588,187.2,187.15,226.33396769]
[1736655549142,8.37507588,187.21,187.15,226.33396769]
[1736655555756,8.37507588,187.21,187.15,217.5]
[1736655556248,8.37507588,187.21,187.15,82.6]
[1736655556750,8.37507588,187.19,187.15,82.6]
[1736655557253,8.37507588,187.18,187.15,82.6]
[1736655560542,16.75015177,187.2,187.15,82.6]
[1736655560543,8.37507588,187.2,187.15,82.6]
[1736655563863,8.37507588,187.19,187.15,82.6]
[1736655565665,7.16541692,187.19,187.15,82.6]
[1736655566662,7.16541692,187.19,187.15,91.43396769]
[1736655566969,7.16541692,187.19,187.15,82.6]
[1736655567340,50.25045532,187.22,187.15,82.6]
[1736655567566,50.25045532,187.22,187.15,217.5]
[1736655568763,16.75015177,187.22,187.15,217.5]
[1736655569650,16.75015177,187.2,187.15,217.5]
[1736655572860,16.75015177,187.21,187.15,217.5]
[1736655573361,16.75015177,187.2,187.15,217.5]
[1736655573566,16.75015177,187.2,187.15,82.6]
[1736655574542,37.19427317,187.22,187.15,82.6]
[1736655574543,53.94442494,187.22,187.15,82.6]
[1736655576165,20.44412139,187.22,187.15,82.6]
[1736655578657,16.75015177,187.22,187.15,82.6]
[1736655580966,16.75015177,187.22,187.15,91.43396769]
[1736655581971,16.75015177,187.22,187.16,226.33396769]
[1736655582274,20.44794922,187.23,187.18,8.83396769]
[1736655582975,16.75015177,187.23,187.18,8.83396769]
[1736655583176,16.75015177,187.23,187.17,8.83396769]
[1736655585175,16.75015177,187.23,187.16,226.33396769]
[1736655586788,16.75015177,187.23,187.16,217.5]
[1736655588475,16.75015177,187.22,187.16,217.5]
[1736655591065,16.75015177,187.23,187.16,217.5]
[1736655591479,16.75015177,187.23,187.16,82.6]
[1736655591982,16.75015177,187.22,187.16,82.6]
[1736655593377,16.75015177,187.23,187.16,82.6]
[1736655603285,16.75015177,187.21,187.16,82.6]
[1736655608791,18.94504724,187.21,187.16,82.6]
[1736655611975,16.75015177,187.2,187.16,82.6]
[1736655617796,20.44588163,187.2,187.16,82.6]
[1736655619398,16.75015177,187.2,187.16,82.6]
[1736655623503,4.46,187.19,187.16,82.6]
[1736655627413,4.46,187.19,187.12,88.9555]
[1736655630706,21.21015177,187.19,187.12,88.9555]
[1736655631403,4.46,187.19,187.12,88.9555]
[1736655632603,21.21015177,187.19,187.12,88.9555]
[1736655634609,4.46,187.19,187.12,82.6]
[1736655634814,20.0,187.17,187.12,82.6]
[1736655635803,20.0,187.15,187.12,82.6]
[1736655639305,20.0,187.15,187.06,224.1216]
[1736655639496,20.0,187.16,187.06,224.1216]
[1736655640104,20.0,187.16,187.06,232.95556769]
[1736655640305,20.0,187.16,187.07,8.83396769]
[1736655640898,20.0,187.15,187.07,8.83396769]
[1736655643636,20.0,187.15,187.1,226.33396769]
[1736655644130,20.0,187.15,187.1,217.5]
[1736655649518,16.75015177,187.19,187.1,226.33396769]
[1736655649700,16.75015177,187.19,187.11,8.83396769]
[1736655650901,18.91192564,187.19,187.11,8.83396769]
[1736655651924,18.91192564,187.19,187.12,8.83396769]
[1736655652107,16.75015177,187.19,187.15,8.83396769]
[1736655652520,50.25045532,187.2,187.15,8.83396769]
[1736655652917,50.25045532,187.2,187.16,8.83396769]
[1736655653604,16.75015177,187.23,187.16,226.33396769]
[1736655654396,16.75015177,187.24,187.16,226.33396769]
[1736655655501,53.94399877,187.25,187.16,226.33396769]
[1736655656230,56.14466844,187.25,187.16,226.33396769]
[1736655656727,56.14466844,187.25,187.17,10.45496769]
[1736655656923,50.25045532,187.25,187.17,10.45496769]
[1736655657140,50.25045532,187.25,187.18,226.33396769]
[1736655657439,50.25045532,187.25,187.19,8.83396769]
[1736655657622,21.38386303,187.26,187.19,9.63506559]
[1736655658326,21.38386303,187.26,187.19,8.83396769]
[1736655658631,21.38386303,187.26,187.18,226.33396769]
[1736655660003,23.5659892,187.26,187.18,226.33396769]
[1736655662831,23.5659892,187.26,187.18,217.5]
[1736655664133,6.81583743,187.26,187.18,217.5]
[1736655676542,6.81583743,187.26,187.19,6.0365]
[1736655678245,6.81583743,187.26,187.19,223.5365]
[1736655679251,2.18212617,187.26,187.19,223.5365]
[1736655679425,16.75015177,187.28,187.2,227.13498644]
[1736655679623,16.75015177,187.28,187.2,226.33396769]
[1736655680128,16.75015177,187.28,187.21,1.628]
[1736655680336,41.79047501,187.29,187.21,2.42895525]
[1736655681347,41.79047501,187.29,187.21,219.92895525]
[1736655681551,41.79047501,187.29,187.21,219.128]
[1736655681750,41.79047501,187.29,187.21,227.96196769]
[1736655682130,41.79047501,187.29,187.21,219.128]
[1736655683950,41.79047501,187.29,187.21,227.96196769]
[1736655684168,41.79047501,187.29,187.22,0.80095644]
[1736655685648,41.79047501,187.29,187.22,9.63492413]
[1736655686037,41.79047501,187.29,187.24,224.1385]
[1736655686546,41.79047501,187.29,187.25,0.80080979]
[1736655686853,41.79047501,187.29,187.26,1.6518]
[1736655687054,39.592647,187.29,187.26,1.6518]
[1736655688233,39.592647,187.29,187.26,219.1518]
[1736655693261,39.592647,187.29,187.26,84.2518]
[1736655696773,15.18330669,187.32,187.26,84.2518]
[1736655698974,10.54959543,187.32,187.26,84.2518]
[1736655699276,10.54959543,187.32,187.26,219.1518]
[1736655702372,8.3561237,187.31,187.26,219.1518]
[1736655706081,8.3561237,187.31,187.27,0.80073502]
[1736655707788,8.3561237,187.34,187.27,218.30073502]
[1736655707974,8.3561237,187.34,187.27,217.5]
[1736655708388,8.3561237,187.35,187.27,217.5]
[1736655709289,10.47325743,187.36,187.27,217.5]
[1736655712692,10.47325743,187.36,187.28,0.80065712]
[1736655712905,10.47325743,187.36,187.27,226.33396769]
[1736655712906,2.11713373,187.36,187.27,217.5]
[1736655713187,12.98983496,187.37,187.27,217.5]
[1736655716988,15.13920759,187.37,187.27,217.5]
[1736655720034,15.13920759,187.37,187.28,6.4958]
[1736655723301,15.13920759,187.37,187.28,223.9958]
[1736655727907,10.50549633,187.37,187.28,223.9958]
[1736655728922,8.3561237,187.36,187.28,223.9958]
[1736655731622,8.3561237,187.36,187.29,1.6328]
[1736655734021,10.50549633,187.37,187.29,1.6328]
[1736655734521,8.3561237,187.37,187.3,0.8006537]
[1736655735039,8.3561237,187.37,187.3,9.63462139]
[1736655736326,8.3561237,187.37,187.3,227.13462139]
[1736655736517,8.3561237,187.37,187.32,7.8589]
[1736655736722,8.3561237,187.37,187.33,0.80047059]
[1736655737307,8.3561237,187.39,187.33,0.80047059]
[1736655738319,8.3561237,187.39,187.32,225.3589]
[1736655738516,2.12851746,187.42,187.32,225.3589]
[1736655738517,10.48464116,187.42,187.32,225.3589]
[1736655738825,8.3561237,187.42,187.32,225.3589]
[1736655743117,15.09327994,187.43,187.32,225.3589]
[1736655754918,8.3561237,187.42,187.32,225.3589]
[1736655759339,8.3561237,187.42,187.33,0.80044404]
[1736655761951,8.3561237,187.42,187.34,1.6442]
[1736655762146,8.3561237,187.42,187.34,219.1442]
[1736655771434,8.3561237,187.41,187.34,219.1442]
[1736655773361,8.3561237,187.4,187.34,219.1442]
[1736655778143,8.3561237,187.4,187.34,82.6]
[1736655778469,8.3561237,187.39,187.34,82.6]
[1736655779047,28.3561237,187.36,187.34,82.6]
[1736655780164,8.3561237,187.35,187.34,82.6]
[1736655783972,28.3561237,187.36,187.34,82.6]
[1736655785772,30.53581158,187.36,187.34,82.6]
[1736655789680,28.3561237,187.36,187.34,82.6]
[1736655798780,20.0,187.36,187.34,82.6]
[1736655799484,28.3561237,187.36,187.34,82.6]
[1736655803590,20.0,187.36,187.34,82.6]
[1736655804787,28.3561237,187.36,187.34,82.6]
[1736655807701,8.3561237,187.36,187.34,82.6]
[1736655808405,8.3561237,187.38,187.34,82.6]
[1736655811915,8.3561237,187.37,187.34,82.6]
[1736655813011,8.3561237,187.37,187.34,217.5]
[1736655816913,8.3561237,187.36,187.34,217.5]
[1736655818920,8.3561237,187.35,187.34,217.5]
[1736655819131,8.3561237,187.35,187.34,82.6]
[1736655822102,8.3561237,187.37,187.34,82.6]
[1736655822735,8.3561237,187.38,187.34,82.6]
[1736655824033,8.3561237,187.37,187.34,82.6]
[1736655825133,8.3561237,187.37,187.34,217.5]
[1736655826936,8.3561237,187.36,187.34,217.5]
[1736655829648,8.3561237,187.35,187.34,217.5]
[1736655835938,8.3561237,187.36,187.34,217.5]
[1736655839944,8.3561237,187.35,187.34,217.5]
[1736655842717,16.75015177,187.36,187.34,217.5]
[1736655842940,16.75015177,187.36,187.34,82.6]
[1736655845653,16.75015177,187.36,187.3,7.0073622]
[1736655846354,3.69506032,187.38,187.3,7.0073622]
[1736655846355,20.0,187.35,187.3,7.0073622]
[1736655849054,20.0,187.35,187.3,141.9073622]
[1736655849559,20.0,187.36,187.3,141.9073622]
[1736655856540,8.38369888,187.33,187.3,141.9073622]
[1736655857271,8.38369888,187.35,187.3,141.9073622]
[1736655859243,8.38369888,187.34,187.3,141.9073622]
[1736655862184,8.38369888,187.33,187.3,141.9073622]
[1736655863060,8.38369888,187.34,187.3,141.9073622]
[1736655863890,8.38369888,187.33,187.3,141.9073622]
[1736655866863,8.38369888,187.33,187.3,7.0073622]
[1736655867462,10.53211107,187.34,187.3,7.0073622]
[1736655868284,8.38369888,187.33,187.3,7.0073622]
[1736655868787,10.53211107,187.34,187.3,7.0073622]
[1736655868973,8.38369888,187.34,187.3,7.0073622]
[1736655876005,8.38369888,187.33,187.3,7.0073622]
[1736655883897,8.38369888,187.34,187.3,7.0073622]
[1736655886098,8.38369888,187.33,187.3,7.0073622]
[1736655887900,8.38369888,187.33,187.3,8.5578622]
[1736655888903,8.38369888,187.35,187.3,8.5578622]
[1736655889281,28.38369888,187.36,187.3,8.5578622]
[1736655890976,28.38369888,187.36,187.3,143.4578622]
[1736655893299,8.38369888,187.36,187.3,143.4578622]
[1736655894409,8.38369888,187.36,187.33,141.9073622]
[1736655894794,8.38369888,187.36,187.34,143.4578622]
[1736655895809,8.38369888,187.4,187.34,143.4578622]
[1736655896786,20.44504169,187.42,187.34,143.4578622]
[1736655896787,41.88400243,187.43,187.34,143.4578622]
[1736655897505,8.38369888,187.42,187.34,143.4578622]
[1736655898598,41.88400243,187.43,187.34,143.4578622]
[1736655899610,8.38369888,187.42,187.34,143.4578622]
[1736655900200,8.38369888,187.43,187.34,143.4578622]
[1736655902818,8.38369888,187.43,187.35,0.80036446]
[1736655903191,8.38369888,187.43,187.34,143.4578622]
[1736655903706,10.50528889,187.44,187.34,143.4578622]
[1736655904614,2.12159001,187.44,187.34,143.4578622]
[1736655904793,8.38369888,187.45,187.34,143.4578622]
[1736655905517,8.38369888,187.44,187.34,143.4578622]
[1736655906789,10.57212969,187.45,187.34,143.4578622]
[1736655911119,10.57212969,187.45,187.35,15.8934302]
[1736655911314,10.57212969,187.45,187.36,10.39036769]
[1736655911315,8.38369888,187.45,187.36,10.39036769]
[1736655911520,8.38369888,187.45,187.37,9.63418757]
[1736655912809,35.7591185,187.47,187.37,9.63418757]
[1736655913319,35.7591185,187.47,187.4,32.61085169]
[1736655913495,35.7591185,187.47,187.42,143.4637622]
[1736655915224,2.18614231,187.51,187.43,6.2591]
[1736655915417,20.0,187.51,187.43,7.0591306]
[1736655920805,6.37582509,187.53,187.43,148.9664928]
[1736655921030,6.37582509,187.53,187.43,148.1664622]
[1736655921215,6.37582509,187.53,187.44,0.7999617]
[1736655922326,24.63371126,187.54,187.44,0.7999617]
[1736655922505,24.63371126,187.54,187.45,1.6235]
[1736655922706,24.63371126,187.54,187.46,142.70722798]
[1736655922905,24.63371126,187.54,187.46,141.9073622]
[1736655923832,24.63371126,187.54,187.47,6.4042]
[1736655924033,24.63371126,187.54,187.47,7.20403566]
[1736655924332,20.0,187.54,187.47,7.20403566]
[1736655925308,4.20561554,187.57,187.48,1.6347]
[1736655925535,4.63371126,187.58,187.49,0.79974984]
[1736655926321,24.63371126,187.58,187.49,0.79974984]
[1736655927843,4.63371126,187.58,187.49,0.79974984]
[1736655928534,20.0,187.6,187.49,142.70711204]
[1736655928713,20.0,187.6,187.49,141.9073622]
[1736655929824,20.0,187.6,187.5,0.79967114]
[1736655930633,20.0,187.6,187.51,8.0389]
[1736655931033,20.0,187.59,187.51,8.0389]
[1736655931841,20.0,187.6,187.51,8.0389]
[1736655932845,20.0,187.6,187.51,149.9462622]
[1736655935350,20.0,187.59,187.51,149.9462622]
[1736655943570,24.63371126,187.59,187.51,149.9462622]
[1736655951603,4.63371126,187.59,187.52,0.79966504]
[1736655953101,4.63371126,187.59,187.51,149.9462622]
[1736655964627,13.01741014,187.59,187.51,149.9462622]
[1736655968719,8.38369888,187.58,187.51,149.9462622]
[1736655974123,8.38369888,187.57,187.51,149.9462622]
[1736655976552,8.38369888,187.57,187.53,7.7517]
[1736655976709,8.38369888,187.57,187.54,0.79954666]
[1736655977446,8.38369888,187.58,187.54,0.79954666]
[1736655978438,8.38369888,187.59,187.54,0.79954666]
[1736655979117,8.38369888,187.6,187.54,0.79954666]
[1736655979702,8.38369888,187.6,187.53,8.55123243]
[1736655980858,8.38369888,187.6,187.53,150.45859463]
[1736655981012,8.38369888,187.6,187.53,149.6590622]
[1736655990161,8.38369888,187.61,187.53,149.6590622]